bitfinex/quotes_SOLUSD_20220216
["timestamp","ask_amount","ask_price","bid_price","bid_amount"]
[1645044012515,14.5712,103.0,102.96,0.92861064]
[1645044015012,17.11232404,103.0,102.96,0.92861064]
[1645044015814,14.5747,102.98,102.96,0.92861064]
[1645044016215,4.36187598,102.97,102.96,0.92861064]
[1645044016418,7.39407595,102.97,102.96,0.92861064]
[1645044017318,21.96937595,102.97,102.96,0.92861064]
[1645044018220,17.60749997,102.97,102.96,0.92861064]
[1645044018617,14.5726,102.98,102.96,0.92861064]
[1645044019018,3.03219997,102.97,102.96,0.92861064]
[1645044019625,14.5726,102.98,102.96,0.92861064]
[1645044020421,3.03219997,102.97,102.96,0.92861064]
[1645044021043,37.484,103.0,102.96,0.92861064]
[1645044021443,22.913,103.0,102.96,0.92861064]
[1645044021744,22.913,103.0,102.96,1.17861064]
[1645044021944,22.913,103.0,102.96,39.14440091]
[1645044023845,14.5683,103.02,102.96,39.14440091]
[1645044026848,14.5683,103.02,102.96,38.89440091]
[1645044027052,14.5683,103.02,102.96,0.92861064]
[1645044027253,2.54112404,103.01,102.96,0.92861064]
[1645044027450,14.5708,103.0,102.96,0.92861064]
[1645044028053,14.5708,103.0,102.96,48.33278433]
[1645044028952,40.2960697,103.02,102.96,48.33278433]
[1645044032856,42.83719374,103.02,102.96,48.33278433]
[1645044033058,1.3751697,103.01,102.96,48.33278433]
[1645044033256,1.3751697,103.0,102.96,48.33278433]
[1645044033757,28.5297,103.01,102.96,48.33278433]
[1645044033758,29.9048697,103.01,102.96,48.33278433]
[1645044036762,15.9448697,103.01,102.96,48.33278433]
[1645044037862,65.27764007,103.03,102.97,0.25]
[1645044037863,1.3751697,103.0,102.97,0.25]
[1645044038062,1.3751697,103.02,102.97,0.25]
[1645044038264,1.3751697,103.03,102.97,0.25]
[1645044038864,1.3751697,103.03,102.98,35.97408803]
[1645044039263,1.37186929,103.04,102.99,286.02]
[1645044039463,2.75184007,103.06,102.99,286.02]
[1645044039691,2.75184007,103.11,103.0,2.07470486]
[1645044039969,2.75184007,103.12,103.01,155.02]
[1645044040163,19.46257668,103.12,103.03,96.71]
[1645044040364,44.39335573,103.12,103.04,56.05503406]
[1645044040566,34.01557668,103.12,103.04,41.50193406]
[1645044041565,31.26373661,103.12,103.04,41.50193406]
[1645044041968,14.553,103.12,103.04,41.50193406]
[1645044042870,14.553,103.12,103.04,56.05573406]
[1645044044272,76.3987,103.13,103.05,96.71]
[1645044044473,76.3987,103.13,103.06,45.88371076]
[1645044045677,62.4387,103.13,103.06,45.88371076]
[1645044045880,15.45392197,103.12,103.06,45.88371076]
[1645044046483,15.45392197,103.12,103.04,24.0927]
[1645044047595,14.5536,103.12,103.05,45.16045659]
[1645044047794,14.5536,103.12,103.05,45.41045659]
[1645044047992,14.5536,103.12,103.05,45.16045659]
[1645044048194,14.5536,103.12,103.04,24.0927]
[1645044048396,19.4026,103.12,103.04,24.0927]
[1645044048594,19.4026,103.12,103.03,23.0676]
[1645044049195,13.69050491,103.11,103.03,23.0676]
[1645044049394,19.4075,103.1,103.04,45.44309968]
[1645044049797,19.4075,103.1,103.04,45.19309968]
[1645044050596,14.5565,103.1,103.04,45.19309968]
[1645044051496,14.5565,103.1,103.05,0.25]
[1645044052299,37.1665,103.11,103.05,0.25]
[1645044052496,14.5543,103.11,103.05,0.25]
[1645044053900,17.92982823,103.11,103.05,0.25]
[1645044054101,17.92982823,103.11,103.01,23.3421]
[1645044054301,17.92982823,103.11,103.02,0.25]
[1645044054503,14.5574,103.09,103.02,0.25]
[1645044055109,14.5574,103.09,103.02,46.22964773]
[1645044056116,28.39013667,103.09,102.99,2.07470486]
[1645044056315,4.852,103.08,102.99,2.07470486]
[1645044056515,14.5645,103.06,102.97,6.0]
[1645044056712,28.5245,103.06,102.96,25.43981064]
[1645044057122,3.37552823,103.05,102.97,38.99949237]
[1645044057318,18.813,103.05,102.97,38.99949237]
[1645044057516,18.813,103.05,102.98,0.25]
[1645044057517,13.96,103.05,102.98,0.25]
[1645044057818,14.5647,103.04,102.98,0.25]
[1645044058920,28.5227,103.05,102.98,0.25]
[1645044060424,13.96,103.05,102.98,0.25]
[1645044060620,28.5211,103.07,102.98,2.32470486]
[1645044061624,28.5211,103.07,102.99,47.7457975]
[1645044062023,31.4426559,103.07,102.99,47.7457975]
[1645044062423,33.98377994,103.07,102.99,47.7457975]
[1645044062625,14.5656,103.04,102.99,47.7457975]
[1645044063025,19.4186,103.04,102.96,25.43981064]
[1645044063225,19.4186,103.04,102.96,0.92861064]
[1645044063422,13.96,103.03,102.96,0.92861064]
[1645044064023,13.96,103.03,102.97,48.57387429]
[1645044064827,14.567,103.02,102.97,48.57387429]
[1645044066029,28.5255,103.03,102.97,48.57387429]
[1645044066228,13.96,103.05,102.97,48.57387429]
[1645044066636,13.96,103.05,102.97,147.35857915]
[1645044066830,60.0632,103.07,102.98,0.25]
[1645044067029,46.1032,103.07,102.98,102.96]
[1645044067429,46.1032,103.07,102.98,105.03470486]
[1645044067629,46.1032,103.07,102.98,102.96]
[1645044067830,14.5615,103.06,102.99,62.01211349]
[1645044068734,14.5615,103.06,102.99,47.45161349]
[1645044071432,14.5615,103.06,103.0,0.25]
[1645044071632,28.5215,103.06,103.0,0.25]
[1645044076667,31.06262404,103.06,102.96,38.44761064]
[1645044076868,29.8392,103.05,102.97,0.25]
[1645044077069,14.5651,103.04,102.97,0.25]
[1645044077670,14.5651,103.04,102.97,36.91851696]
[1645044081774,14.5628,103.05,102.97,148.19131696]
[1645044081983,36.567,103.07,102.97,148.19131696]
[1645044082176,60.6172,103.07,102.98,6.0]
[1645044082381,60.6172,103.07,102.99,40.89831432]
[1645044082579,60.6172,103.07,102.99,137.60831432]
[1645044082981,60.6172,103.07,102.99,210.47871432]
[1645044082982,13.96,103.07,102.99,210.47871432]
[1645044083680,13.96,103.07,102.99,55.45871432]
[1645044084482,36.6106,103.07,102.99,55.45871432]
[1645044084782,36.6106,103.07,102.99,152.16871432]
[1645044086086,13.96,103.07,102.99,210.47871432]
[1645044087384,14.5585,103.08,102.99,210.47871432]
[1645044088287,14.557,103.09,102.99,210.47871432]
[1645044088690,14.557,103.09,102.99,212.54270572]
[1645044088885,23.4453,103.1,102.99,212.54270572]
[1645044089085,31.04914007,103.1,103.02,37.74726653]
[1645044089284,45.60604007,103.1,103.02,134.45726653]
[1645044089485,42.8542,103.1,103.02,134.45726653]
[1645044090689,42.8542,103.1,103.02,149.01336653]
[1645044090690,28.2973,103.1,103.02,149.01336653]
[1645044090887,23.4453,103.1,103.02,149.01336653]
[1645044092610,23.4453,103.1,103.02,207.32336653]
[1645044093008,23.4453,103.1,103.02,52.30336653]
[1645044093614,23.4453,103.1,103.02,149.01336653]
[1645044095512,23.1525,103.11,103.02,209.38735793]
[1645044095915,23.1525,103.11,103.02,232.10715793]
[1645044097919,23.1525,103.11,103.02,135.39715793]
[1645044098116,23.1525,103.11,103.02,133.33316653]
[1645044098416,23.1525,103.11,103.02,230.04316653]
[1645044098616,23.7409,103.1,103.02,230.04316653]
[1645044099317,23.7409,103.1,103.02,232.10715793]
[1645044102226,16.71184007,103.13,103.02,232.10715793]
[1645044102427,13.96,103.13,103.02,232.10715793]
[1645044102633,23.8952,103.12,103.02,232.10715793]
[1645044107040,25.95551974,103.12,103.02,52.30336653]
[1645044107239,15.14794516,103.1,103.02,37.74726653]
[1645044107442,2.06031974,103.08,103.02,37.74726653]
[1645044107638,13.96,103.08,103.02,37.74726653]
[1645044108938,14.5609,103.07,103.02,37.74726653]
[1645044109241,14.5609,103.07,103.0,46.8426]
[1645044109443,38.6535,103.07,103.0,46.8426]
[1645044110041,38.6535,103.07,103.01,45.4125173]
[1645044110444,24.0926,103.07,103.02,0.25]
[1645044110643,13.96,103.08,103.02,0.25]
[1645044111061,13.96,103.08,103.02,96.96]
[1645044111261,13.96,103.08,103.02,0.25]
[1645044112464,13.96,103.08,103.03,44.71416466]
[1645044113069,13.96,103.08,103.02,0.25]
[1645044115069,78.43368285,103.09,103.02,0.25]
[1645044117474,83.28468285,103.09,103.02,0.25]
[1645044117676,68.4647,103.09,103.02,0.25]
[1645044117875,68.4647,103.09,103.02,96.96]
[1645044118076,53.9075,103.09,103.02,96.96]
[1645044118472,53.9075,103.09,103.01,42.34844318]
[1645044118776,16.91859158,103.08,103.01,42.34844318]
[1645044118975,24.52243165,103.08,103.01,42.34844318]
[1645044119179,27.06355569,103.08,103.01,42.34844318]
[1645044119376,24.31171562,103.08,103.01,42.34844318]
[1645044119579,24.52243165,103.08,103.01,42.34844318]
[1645044119778,22.21155569,103.08,103.01,42.34844318]
[1645044119979,14.5608,103.07,103.01,42.34844318]
[1645044122880,14.5608,103.07,102.98,135.1199]
[1645044123082,37.959,103.07,102.99,14.8096]
[1645044123288,23.3982,103.07,103.0,96.71]
[1645044123483,23.3982,103.07,102.99,20.8096]
[1645044123683,23.3982,103.07,102.99,0.25]
[1645044123890,37.3582,103.07,102.97,41.36555613]
[1645044124089,42.2112,103.07,102.97,41.36555613]
[1645044124485,44.96304007,103.07,102.97,41.36555613]
[1645044124888,42.2112,103.07,102.97,41.36555613]
[1645044125289,56.7711,103.07,102.98,0.25]
[1645044125688,56.7711,103.07,102.96,0.92861064]
[1645044125891,2.54112404,103.06,102.96,0.92861064]
[1645044126187,14.5702,103.03,102.96,0.92861064]
[1645044126388,18.814,103.02,102.96,0.92861064]
[1645044126587,21.35512404,103.02,102.95,0.17903876]
[1645044127189,18.814,103.02,102.95,0.42903876]
[1645044127788,14.571,103.01,102.95,0.42903876]
[1645044129189,14.571,103.01,102.95,0.17903876]
[1645044130292,14.571,103.01,102.95,0.42903876]
[1645044130495,36.6244,103.02,102.95,0.42903876]
[1645044130692,36.6244,103.02,102.95,14.99693876]
[1645044130893,36.6244,103.02,102.96,39.33893407]
[1645044131292,22.6644,103.02,102.96,136.04893407]
[1645044131693,23.7154,103.03,102.96,136.04893407]
[1645044132092,23.7154,103.03,102.96,39.33893407]
[1645044132292,23.7154,103.03,102.96,136.04893407]
[1645044132493,13.96,103.06,102.96,136.04893407]
[1645044132692,22.6446,103.05,102.96,136.04893407]
[1645044132893,22.6446,103.05,102.97,111.2751]
[1645044133093,22.6446,103.05,102.97,117.2751]
[1645044133697,22.6446,103.05,102.98,35.99645285]
[1645044133896,22.6446,103.05,102.99,14.5611]
[1645044134096,22.6446,103.05,103.0,38.97050733]
[1645044134898,60.6732,103.07,103.0,38.97050733]
[1645044135100,37.8046,103.07,103.0,38.97050733]
[1645044135900,37.8046,103.07,103.0,53.53140733]
[1645044136604,51.7646,103.07,103.0,53.53140733]
[1645044137322,23.2439,103.07,103.0,150.24140733]
[1645044137522,115.3522,103.1,103.0,150.24140733]
[1645044137724,120.049,103.1,103.0,208.55140733]
[1645044138928,134.6052,103.1,103.0,208.55140733]
[1645044139527,60.6517,103.1,103.0,208.55140733]
[1645044142133,65.5037,103.1,103.0,208.55140733]
[1645044143333,60.6517,103.1,103.0,208.55140733]
[1645044144333,60.6517,103.1,103.0,53.53140733]
[1645044144537,27.00163896,103.09,103.0,77.54040733]
[1645044144732,14.5575,103.09,103.0,174.25040733]
[1645044145337,14.5575,103.09,103.0,232.56040733]
[1645044145539,46.0955,103.1,103.0,232.56040733]
[1645044145738,46.0955,103.1,103.0,246.52040733]
[1645044146535,4.852,103.13,103.0,246.52040733]
[1645044146734,24.7357,103.13,103.04,155.02]
[1645044146935,24.7357,103.13,103.06,14.5496]
[1645044147535,24.7357,103.13,103.07,44.93818879]
[1645044148235,24.7357,103.13,103.07,59.48778879]
[1645044152440,23.1417,103.14,103.07,59.48778879]
[1645044152940,28.5074,103.16,103.07,117.79778879]
[1645044153140,53.1122,103.16,103.1,14.5461]
[1645044153340,39.1522,103.16,103.11,46.08020147]
[1645044153541,24.6048,103.16,103.11,46.08020147]
[1645044155244,24.6048,103.16,103.11,60.62500147]
[1645044156246,24.6048,103.16,103.11,14.5448]
[1645044157148,24.6048,103.16,103.11,62.68005439]
[1645044159652,24.6048,103.16,103.09,14.5466]
[1645044159854,25.97077165,103.16,103.09,14.5466]
[1645044160054,1.36597165,103.15,103.09,14.5466]
[1645044160251,1.36597165,103.15,103.1,0.25]
[1645044161353,25.97077165,103.16,103.1,14.796]
[1645044161555,25.97077165,103.16,103.11,36.95125639]
[1645044162458,1.36597165,103.15,103.11,36.95125639]
[1645044166265,1.36597165,103.15,103.11,51.49605639]
[1645044168470,1.36597165,103.14,103.11,51.49605639]
[1645044168670,1.36597165,103.14,103.11,14.5448]
[1645044168872,1.36597165,103.14,103.08,23.5427]
[1645044169071,1.36597165,103.13,103.08,23.5427]
[1645044169469,1.36597165,103.12,103.08,23.5427]
[1645044169669,1.36597165,103.12,103.05,44.02237221]
[1645044170268,1.36597165,103.12,103.06,0.25]
[1645044171487,1.36597165,103.11,103.06,0.25]
[1645044173788,1.36597165,103.11,103.06,14.8017]
[1645044174192,1.36597165,103.1,103.06,14.8017]
[1645044174793,1.36597165,103.1,103.06,14.5517]
[1645044175592,1.36597165,103.1,103.07,47.29512269]
[1645044178492,1.36597165,103.1,103.08,0.25]
[1645044179495,1.36597165,103.11,103.08,0.25]
[1645044179693,1.36597165,103.1,103.08,0.25]
[1645044180299,1.36597165,103.11,103.08,0.25]
[1645044181202,1.36597165,103.12,103.08,0.25]
[1645044181800,1.36597165,103.13,103.08,0.25]
[1645044182399,1.36597165,103.12,103.08,0.25]
[1645044183001,1.36597165,103.12,103.09,46.34500665]
[1645044183204,1.36597165,103.13,103.09,46.34500665]
[1645044184203,1.36597165,103.13,103.09,60.89220665]
[1645044185503,1.36597165,103.14,103.09,60.89220665]
[1645044186705,1.36597165,103.13,103.09,60.89220665]
[1645044187104,1.36597165,103.13,103.09,14.5472]
[1645044187405,1.36597165,103.12,103.08,14.5486]
[1645044187604,1.36597165,103.12,103.03,4.849]
[1645044187811,27.57204007,103.14,103.04,24.9424]
[1645044187812,1.36597165,103.1,103.04,24.9424]
[1645044188105,1.36597165,103.1,103.05,39.83490945]
[1645044188907,1.36597165,103.1,103.06,0.25]
[1645044189731,1.36597165,103.11,103.06,0.25]
[1645044189909,1.36597165,103.1,103.06,0.25]
[1645044190810,1.36597165,103.1,103.06,14.8009]
[1645044191010,1.36597165,103.11,103.06,14.8009]
[1645044191908,1.36597165,103.11,103.02,23.0659]
[1645044192309,3.90709569,103.11,103.02,23.0659]
[1645044192509,6.21697165,103.11,103.02,23.0659]
[1645044192710,1.36597165,103.09,103.02,23.0659]
[1645044192915,1.36597165,103.08,103.03,45.06188773]
[1645044193914,1.36597165,103.08,103.04,0.25]
[1645044194413,1.36597165,103.08,103.03,45.06188773]
[1645044195817,1.36597165,103.08,103.04,0.25]
[1645044198044,1.36597165,103.09,103.04,0.25]
[1645044199241,1.36597165,103.08,103.04,0.25]
[1645044199447,1.36597165,103.09,103.04,0.25]
[1645044202951,15.92307165,103.09,103.04,0.25]
[1645044203554,1.36597165,103.08,103.04,0.25]
[1645044206957,1.36597165,103.09,103.04,0.25]
[1645044213175,1.36597165,103.08,103.04,0.25]
[1645044214776,15.92327165,103.09,103.04,0.25]
[1645044215172,1.36597165,103.08,103.04,0.25]
[1645044218477,1.36597165,103.09,103.04,14.8037]
[1645044218880,1.36597165,103.08,103.04,14.8037]
[1645044219077,1.36597165,103.09,103.04,14.8037]
[1645044220180,1.36597165,103.09,103.04,111.5137]
[1645044222383,1.36597165,103.08,103.04,111.5137]
[1645044222981,1.36597165,103.08,103.04,14.8037]
[1645044223381,1.36597165,103.08,103.04,0.25]
[1645044224382,1.36597165,103.08,103.04,14.8033]
[1645044226587,1.36597165,103.08,103.04,0.25]
[1645044226786,1.36597165,103.07,103.04,0.25]
[1645044229888,1.36597165,103.08,103.04,0.25]
[1645044230088,1.36597165,103.08,103.04,14.8034]
[1645044232312,1.36597165,103.08,103.04,14.5534]
[1645044232512,1.36597165,103.07,103.04,14.5534]
[1645044233915,1.36597165,103.08,103.05,0.25]
[1645044236417,1.36597165,103.07,103.05,0.25]
[1645044237618,1.36597165,103.07,103.02,104.8950105]
[1645044238020,1.36597165,103.06,103.02,104.8950105]
[1645044239119,1.36597165,103.06,103.03,0.25]
[1645044239720,1.36597165,103.07,103.03,0.25]
[1645044243527,24.9197,103.08,103.04,155.02]
[1645044243528,1.36597165,103.08,103.04,155.02]
[1645044243731,1.36597165,103.1,103.04,155.02]
[1645044244928,1.36597165,103.1,103.05,14.5504]
[1645044245132,1.36597165,103.1,103.06,40.78945191]
[1645044246330,1.36597165,103.1,103.06,137.49945191]
[1645044246528,1.36597165,103.1,103.06,40.78945191]
[1645044246935,1.36597165,103.11,103.06,152.04935191]
[1645044249440,1.36597165,103.12,103.06,152.04935191]
[1645044258470,1.36597165,103.12,103.06,210.35935191]
[1645044258669,1.36597165,103.13,103.06,210.35935191]
[1645044259069,1.36597165,103.14,103.06,212.40916019]
[1645044259368,1.36597165,103.14,103.06,226.36916019]
[1645044259568,1.36597165,103.14,103.06,248.91686019]
[1645044259767,1.36597165,103.15,103.06,248.91686019]
[1645044259968,1.36597165,103.15,103.06,258.54903338]
[1645044261573,1.36597165,103.16,103.06,258.54903338]
[1645044267979,25.48467165,103.17,103.06,258.54903338]
[1645044269183,25.48467165,103.17,103.1,155.02]
[1645044269381,1.36597165,103.16,103.12,111.2515]
[1645044269984,1.36597165,103.16,103.12,14.5415]
[1645044270382,1.36597165,103.16,103.11,60.66677786]
[1645044270584,1.36597165,103.16,103.11,14.5428]
[1645044270784,1.36597165,103.15,103.06,4.848]
[1645044270987,1.36597165,103.14,103.04,24.5834]
[1645044271184,1.36597165,103.13,103.04,121.2934]
[1645044271382,6.21497165,103.13,103.04,121.2934]
[1645044271586,1.36597165,103.13,103.05,104.87181443]
[1645044271783,1.36597165,103.13,103.06,14.5497]
[1645044272183,1.36597165,103.13,103.07,0.25]
[1645044273387,1.36597165,103.13,103.06,111.2597]
[1645044273987,25.99537165,103.13,103.06,134.6858]
[1645044274792,25.99537165,103.13,103.07,0.25]
[1645044275192,25.99537165,103.13,103.07,14.7981]
[1645044276789,25.99537165,103.13,103.07,0.25]
[1645044276790,1.36597165,103.12,103.07,0.25]
[1645044277290,1.36597165,103.11,103.05,46.56181443]
[1645044278896,1.36597165,103.11,103.06,0.25]
[1645044280198,1.36597165,103.1,103.03,19.4029]
[1645044280398,26.20927165,103.1,103.03,14.5539]
[1645044281206,27.2576949,103.1,103.03,53.43342439]
[1645044281401,1.36597165,103.09,103.04,0.25]
[1645044282797,41.8134949,103.1,103.04,0.25]
[1645044283198,44.35461894,103.1,103.04,0.25]
[1645044283398,43.30619569,103.1,103.04,0.25]
[1645044283596,40.76507165,103.1,103.04,0.25]
[1645044284197,26.20927165,103.1,103.04,0.25]
[1645044285198,24.8433,103.1,103.04,0.25]
[1645044286399,26.20927165,103.1,103.04,0.25]
[1645044286800,40.76497165,103.1,103.04,0.25]
[1645044290607,39.399,103.1,103.04,0.25]
[1645044291335,24.8433,103.1,103.04,0.25]
[1645044291935,24.8433,103.1,103.03,53.48584175]
[1645044293335,24.8433,103.1,103.04,0.25]
[1645044294839,26.20927165,103.1,103.04,0.25]
[1645044295442,40.76537165,103.1,102.99,13.96]
[1645044295640,63.49857165,103.1,103.0,22.7272]
[1645044295841,1.36597165,103.09,103.0,22.9772]
[1645044296441,1.46281775,103.08,103.01,40.89664136]
[1645044296943,24.34991775,103.08,103.01,40.89664136]
[1645044297741,22.8871,103.08,103.01,55.45364136]
[1645044299044,22.8871,103.08,103.01,210.47364136]
[1645044299941,13.88456827,103.08,103.01,210.47364136]
[1645044300642,13.88456827,103.08,103.01,152.16364136]
[1645044300844,13.88456827,103.08,103.01,55.45364136]
[1645044301243,1.07901771,103.07,103.0,37.2855]
[1645044301446,3.62014175,103.07,102.98,32.64928198]
[1645044301645,3.62014175,103.07,102.97,6.0]
[1645044301646,4.9861134,103.07,102.97,6.0]
[1645044301843,3.90709569,103.06,102.96,23.4633]
[1645044302046,1.36597165,103.05,102.96,23.4633]
[1645044302243,1.36597165,103.05,102.97,34.26952153]
[1645044302444,1.36597165,103.06,102.97,36.31396267]
[1645044303246,15.92747165,103.06,102.98,2.29444114]
[1645044303448,36.5024884,103.06,102.98,2.29444114]
[1645044303747,25.88127165,103.05,102.98,2.29444114]
[1645044303945,24.5153,103.05,102.98,2.29444114]
[1645044304447,24.5153,103.05,102.98,16.85544114]
[1645044304846,24.5153,103.05,102.98,37.3676]
[1645044307047,24.5153,103.05,102.98,134.0776]
[1645044307251,24.5153,103.05,103.0,96.71]
[1645044307450,24.5153,103.05,103.01,111.2663]
[1645044307648,24.5153,103.05,103.02,37.39070851]
[1645044310249,1.36597165,103.08,103.02,37.39070851]
[1645044310948,1.36597165,103.08,103.02,148.65620851]
[1645044311153,24.09917165,103.1,103.02,206.96620851]
[1645044311748,24.09917165,103.1,103.03,2.04444114]
[1645044311749,22.7332,103.1,103.03,2.04444114]
[1645044311952,22.7332,103.1,103.04,96.71]
[1645044312151,22.7332,103.1,103.06,36.36109361]
[1645044313054,1.36597165,103.11,103.06,133.07109361]
[1645044313252,1.36597165,103.12,103.06,50.91109361]
[1645044313652,1.36597165,103.12,103.06,147.62109361]
[1645044313852,1.36597165,103.12,103.06,205.93109361]
[1645044314052,1.36597165,103.13,103.06,205.93109361]
[1645044314751,1.36597165,103.14,103.06,205.93109361]
[1645044314956,1.36597165,103.14,103.06,207.97553475]
[1645044315155,26.28777165,103.15,103.06,207.97553475]
[1645044317152,26.28777165,103.15,103.06,221.93553475]
[1645044317360,24.9218,103.15,103.06,221.93553475]
[1645044318154,26.28777165,103.15,103.06,221.93553475]
[1645044318359,24.9218,103.15,103.06,221.93553475]
[1645044321158,24.9218,103.15,103.06,219.89109361]
[1645044321757,0.98053584,103.14,103.06,64.87109361]
[1645044321955,0.98053584,103.14,103.06,50.91109361]
[1645044322758,16.30650749,103.14,103.06,36.36109361]
[1645044322959,4.849,103.13,103.06,36.36109361]
[1645044323357,4.849,103.13,103.05,14.5513]
[1645044323558,16.50112404,103.13,103.06,0.25]
[1645044323758,22.71609569,103.13,103.06,0.25]
[1645044323962,20.17497165,103.13,103.06,0.25]
[1645044324360,34.72667165,103.13,103.06,0.25]
[1645044324559,29.87767165,103.13,103.03,48.77222927]
[1645044324759,4.849,103.12,103.03,48.77222927]
[1645044324961,18.809,103.12,103.03,48.77222927]
[1645044325165,20.17497165,103.12,103.0,24.3583]
[1645044325362,3.90709569,103.11,103.0,24.3583]
[1645044325559,18.811,103.1,102.99,14.5587]
[1645044325761,70.48159569,103.1,103.0,6.0]
[1645044325963,70.48159569,103.1,102.99,14.5587]
[1645044326161,13.40394284,103.09,102.99,60.65878589]
[1645044326361,4.852,103.08,102.96,16.00444114]
[1645044326563,18.812,103.08,102.95,81.88728688]
[1645044326761,23.8477,103.07,102.96,6.0]
[1645044326960,14.5621,103.06,102.98,14.5613]
[1645044327360,3.80432206,103.05,102.98,53.16765903]
[1645044327767,3.80432206,103.05,102.99,0.25]
[1645044328162,3.80432206,103.05,102.98,53.16765903]
[1645044329065,18.36702206,103.05,102.98,38.60635903]
[1645044329663,18.36702206,103.05,102.99,0.25]
[1645044330065,14.5627,103.05,102.99,0.25]
[1645044330264,4.853,103.06,102.99,0.25]
[1645044330265,19.4144,103.06,102.99,0.25]
[1645044330462,14.5614,103.06,102.99,0.25]
[1645044331066,31.49204192,103.06,102.99,0.25]
[1645044331865,31.49204192,103.06,102.95,12.35772802]
[1645044332067,14.5662,103.03,102.95,0.17903876]
[1645044332468,21.96132404,103.03,102.95,0.17903876]
[1645044332871,21.96132404,103.03,102.95,44.31915591]
[1645044333467,17.10732404,103.03,102.95,44.31915591]
[1645044333669,17.10732404,103.03,102.95,0.17903876]
[1645044333968,25.45132404,103.03,102.95,0.17903876]
[1645044334169,39.41132404,103.03,102.95,0.17903876]
[1645044334567,4.854,103.02,102.95,0.17903876]
[1645044334769,14.5684,103.01,102.95,0.17903876]
[1645044334971,14.5684,103.01,102.95,0.42903876]
[1645044335973,14.5684,103.01,102.95,0.17903876]
[1645044336173,17.10952404,103.01,102.95,0.17903876]
[1645044336373,31.06952404,103.01,102.95,0.17903876]
[1645044336975,28.5284,103.01,102.95,0.17903876]
[1645044337476,28.5284,103.01,102.95,0.42903876]
[1645044339802,13.96,103.01,102.95,0.42903876]
[1645044341607,37.2768,103.04,102.95,97.13903876]
[1645044341806,37.2768,103.04,102.96,135.23781322]
[1645044342003,23.3168,103.04,102.96,135.23781322]
[1645044342204,23.3168,103.04,102.96,38.52781322]
[1645044342404,25.85792404,103.04,102.96,38.52781322]
[1645044342604,40.42252404,103.04,102.96,38.52781322]
[1645044343203,37.8814,103.04,102.96,38.52781322]
[1645044343904,37.8814,103.04,102.96,53.09151322]
[1645044344504,23.3168,103.04,102.96,149.80151322]
[1645044344906,23.3168,103.04,102.96,53.09151322]
[1645044345305,23.3168,103.04,102.96,111.40151322]
[1645044345508,23.3168,103.04,102.96,53.09151322]
[1645044346206,22.8168,103.04,102.96,208.11151322]
[1645044346409,22.8168,103.04,102.98,14.5609]
[1645044346608,22.8168,103.04,102.98,111.2709]
[1645044347009,22.8168,103.04,102.98,14.5609]
[1645044347622,22.8168,103.04,102.97,6.0]
[1645044347824,22.8168,103.04,102.96,53.09051322]
[1645044349221,22.8168,103.04,102.96,149.80051322]
[1645044350328,14.563,103.05,102.96,149.80051322]
[1645044350928,37.1551,103.05,102.96,149.80051322]
[1645044351328,37.1551,103.05,102.97,102.71]
[1645044351533,37.1551,103.05,102.97,20.5617]
[1645044352727,22.5921,103.05,102.97,117.2717]
[1645044352937,22.5921,103.05,102.97,20.5617]
[1645044353828,23.95807165,103.05,102.97,20.5617]
[1645044354432,38.52077165,103.05,102.96,38.52781322]
[1645044354629,41.06189569,103.05,102.96,38.52781322]
[1645044354836,1.36597165,103.04,102.96,38.52781322]
[1645044355641,1.36597165,103.04,102.97,96.71]
[1645044355835,23.95807165,103.05,102.97,0.25]
[1645044356038,23.95807165,103.05,102.98,6.0]
[1645044357341,23.95807165,103.05,102.98,102.71]
[1645044357938,22.5921,103.05,102.98,117.2704]
[1645044358141,26.00147165,103.06,102.98,117.2704]
[1645044358339,24.6355,103.06,102.98,117.2704]
[1645044358761,26.00147165,103.06,102.98,117.2704]
[1645044358961,26.00147165,103.06,102.98,20.5604]
[1645044359162,24.6355,103.06,103.0,34.94457267]
[1645044359862,26.00147165,103.06,102.97,0.25]
[1645044360166,1.36597165,103.05,102.95,0.17903876]
[1645044360362,15.93057165,103.04,102.95,0.17903876]